bitfinex-derivatives/quotes_ETHF0:USTF0_20250411
["timestamp","ask_amount","ask_price","bid_price","bid_amount"]
[1744390308454,2.77053652,1570.9,1570.8,2.6599]
[1744390308658,2.77053652,1570.9,1570.8,3.93374]
[1744390309956,4.04429652,1570.9,1570.8,2.6599]
[1744390310158,2.77053652,1570.9,1570.8,2.6599]
[1744390310451,4.04429652,1570.9,1570.8,2.6599]
[1744390310648,4.04436652,1570.9,1570.7,2.48013652]
[1744390310958,3.2078,1570.8,1570.7,5.18823652]
[1744390311356,2.77053652,1570.9,1570.7,5.18823652]
[1744390311547,2.77053652,1570.9,1570.8,2.7874]
[1744390315159,2.77053652,1570.9,1570.7,2.48013652]
[1744390315656,2.77053652,1570.9,1570.7,5.28843652]
[1744390316157,2.77053652,1570.9,1570.8,2.8083]
[1744390317065,7.58953652,1570.9,1570.8,2.8083]
[1744390317664,7.58953652,1570.9,1570.7,0.00953652]
[1744390317865,2.8299,1570.8,1570.7,2.70553652]
[1744390318871,6.0377,1570.8,1570.7,2.70553652]
[1744390320165,4.82853652,1570.9,1570.7,2.70553652]
[1744390320652,8.03633652,1570.9,1570.7,2.70553652]
[1744390320856,2.9016,1570.8,1570.7,0.00953652]
[1744390321358,7.9016,1570.8,1570.7,0.00953652]
[1744390321763,2.9016,1570.8,1570.7,0.00953652]
[1744390322375,7.9016,1570.8,1570.7,0.00953652]
[1744390323568,7.9016,1570.8,1569.8,8.0278]
[1744390323873,3.2078,1570.5,1570.1,2.8853]
[1744390324065,7.4543,1570.4,1570.1,2.8853]
[1744390324270,2.6343,1570.3,1570.1,2.8853]
[1744390325577,5.8421,1570.3,1570.1,2.8853]
[1744390326075,2.6343,1570.2,1570.0,0.00635772]
[1744390326271,2.6343,1570.2,1570.0,2.68365772]
[1744390326872,4.82,1570.4,1570.0,2.68365772]
[1744390327176,6.0652,1570.7,1570.2,3.2078]
[1744390327373,6.0652,1570.7,1570.3,7.5919]
[1744390327678,3.2078,1570.7,1570.4,2.6773]
[1744390327880,0.95584339,1570.8,1570.4,5.8851]
[1744390328380,0.95584339,1570.8,1570.5,2.6773]
[1744390328879,3.81324339,1570.8,1570.5,2.6773]
[1744390329379,7.02104339,1570.8,1570.5,2.6773]
[1744390329680,9.95096935,1570.7,1570.5,2.6773]
[1744390332375,10.9339,1570.6,1570.3,4.9146]
[1744390332576,2.9061,1570.5,1570.1,2.8954]
[1744390332784,3.2078,1570.4,1570.1,2.8954]
[1744390333081,3.2078,1570.2,1570.0,0.00635772]
[1744390333280,2.9061,1570.1,1570.0,0.00635772]
[1744390333880,7.9061,1570.1,1570.0,0.00635772]
[1744390334078,9.18051,1570.1,1570.0,0.00635772]
[1744390334282,4.18051,1570.1,1570.0,0.00635772]
[1744390334481,1.27441,1570.1,1570.0,0.00635772]
[1744390334982,1.27441,1570.1,1570.0,5.24275772]
[1744390335279,1.27441,1570.1,1570.0,7.73175772]
[1744390336175,1.27437,1570.2,1570.0,9.00624772]
[1744390336375,1.27437,1570.2,1570.0,7.73175772]
[1744390336570,1.27437,1570.2,1570.0,9.00624772]
[1744390336768,1.27437,1570.2,1570.0,7.73175772]
[1744390337177,1.27437,1570.2,1570.0,9.00621772]
[1744390337681,4.82,1570.3,1570.1,1.27437]
[1744390337877,8.20104777,1570.6,1570.2,3.9722]
[1744390338186,9.95096935,1570.3,1570.2,5.9057]
[1744390338380,9.95096935,1570.3,1570.2,7.18003]
[1744390338582,9.95096935,1570.3,1570.2,5.9057]
[1744390338783,9.95096935,1570.3,1570.2,3.97223]
[1744390339284,12.43871168,1570.4,1570.3,1.27425]
[1744390339479,12.43871168,1570.4,1570.3,4.48205]
[1744390339680,12.43871168,1570.4,1570.3,14.30105]
[1744390340385,13.71288168,1570.4,1570.3,14.30105]
[1744390340880,12.43871168,1570.4,1570.3,14.30105]
[1744390341086,2.88871168,1570.4,1570.3,14.30105]
[1744390341584,2.88871168,1570.4,1570.3,55.10105]
[1744390341984,1.27409,1570.5,1570.4,1.27417]
[1744390342184,6.2658244,1570.6,1570.5,1.27409]
[1744390342381,4.9917844,1570.6,1570.5,4.48189]
[1744390342583,4.9917844,1570.6,1570.5,11.88979]
[1744390342889,6.2657844,1570.6,1570.5,11.88979]
[1744390343189,4.9917844,1570.6,1570.5,11.88979]
[1744390343487,6.2657844,1570.6,1570.5,11.88979]
[1744390343890,4.9917844,1570.6,1570.5,11.88979]
[1744390344083,4.9917844,1570.6,1570.5,14.11889]
[1744390346294,6.2656444,1570.8,1570.6,1.27394]
[1744390346492,1.27392,1570.7,1570.6,2.8336]
[1744390346692,1.27413,1570.5,1570.3,3.2078]
[1744390346893,1.27413,1570.5,1570.4,2.8336]
[1744390347890,1.27413,1570.5,1570.1,4.5583]
[1744390347891,4.818,1570.5,1570.1,4.5583]
[1744390348086,3.99272,1570.4,1570.2,4.1225]
[1744390348291,4.6677,1570.7,1570.2,9.24182]
[1744390348483,7.7102844,1570.8,1570.7,1.27392]
[1744390348681,8.9841244,1570.8,1570.6,1.27395]
[1744390348881,1.27393,1570.7,1570.5,5.85563]
[1744390349192,2.7185,1570.7,1570.5,5.85567]
[1744390349393,3.99242,1570.7,1570.6,2.8482]
[1744390349594,4.9917844,1570.8,1570.7,1.27392]
[1744390350094,4.00185652,1570.9,1570.7,1.27392]
[1744390350293,0.00953652,1570.9,1570.8,1.27384]
[1744390353199,0.00953652,1570.9,1570.8,4.48164]
[1744390355507,1.28329652,1570.9,1570.8,4.48164]
[1744390355694,0.00953652,1570.9,1570.8,4.48164]
[1744390356296,1.28329652,1570.9,1570.8,4.48164]
[1744390356503,0.00953652,1570.9,1570.8,4.48164]
[1744390357099,0.00953652,1570.9,1570.8,14.29864]
[1744390357100,6.52e-06,1570.9,1570.8,14.29864]
[1744390358005,6.52e-06,1570.9,1570.8,14.78270819]
[1744390358503,6.52e-06,1570.9,1570.8,14.29864]
[1744390358906,7.48487859,1571.2,1571.1,1.2736]
[1744390359095,7.48487859,1571.2,1571.1,9.2984]
[1744390359405,7.48487859,1571.2,1571.1,50.0984]
[1744390359998,6.04283859,1571.2,1571.1,50.0984]
[1744390360194,4.75710859,1571.2,1571.1,55.0984]
[1744390360502,0.21723859,1571.2,1571.1,55.0984]
[1744390360703,5.11e-06,1571.3,1571.2,1.27352]
[1744390360904,5.11e-06,1571.3,1571.2,4.06912]
[1744390361101,5.11e-06,1571.3,1571.2,9.06912]
[1744390364308,5.11e-06,1571.3,1571.2,4.06912]
[1744390365104,4.98993069,1571.3,1571.2,4.06912]
[1744390365702,9.07357069,1571.3,1571.2,4.06912]
[1744390366104,7.80013069,1571.3,1571.2,4.06912]
[1744390366306,4.98993069,1571.3,1571.2,4.06912]
[1744390366908,4.11996,1571.4,1571.2,4.06912]
[1744390366909,3.2078,1572.3,1571.2,7.7956]
[1744390367103,3.2078,1572.3,1571.1,48.8248]
[1744390367104,5.92877108,1572.0,1571.8,3.2078]
[1744390367306,4.725,1572.1,1572.0,1.27287]
[1744390367607,3.09516069,1572.0,1571.9,1.27293]
[1744390368004,3.09516069,1572.0,1571.9,3.92553]
[1744390368205,4.36803069,1572.0,1571.9,3.92553]
[1744390368401,4.36803069,1572.0,1571.9,1.27293]
[1744390368707,3.09516069,1572.0,1571.9,1.27293]
[1744390369610,9.36808069,1572.0,1571.9,1.27295]
[1744390370310,8.09516069,1572.0,1571.9,1.27295]
[1744390370513,10.85216069,1572.0,1571.9,1.27295]
[1744390370910,5.85216069,1572.0,1571.9,1.27295]
[1744390371111,3.09516069,1572.0,1571.9,4.03905]
[1744390371610,3.09516069,1572.0,1571.9,8.85205]
[1744390371807,0.00953652,1572.1,1572.0,1.27287]
[1744390372105,3.10469721,1572.1,1572.0,4.08427]
[1744390372304,3.10469721,1572.1,1572.0,44.88427]
[1744390373699,5.70619721,1572.1,1572.0,44.88427]
[1744390374706,6.97898721,1572.1,1572.0,42.07287]
[1744390374903,6.97898721,1572.1,1572.0,1.27287]
[1744390375212,5.70619721,1572.1,1572.0,1.27287]
[1744390375914,6.97898721,1572.1,1572.0,1.27287]
[1744390376106,5.70619721,1572.1,1572.0,1.27287]
[1744390376302,1.27288,1572.0,1571.9,1.27291]
[1744390376505,10.49066069,1572.0,1571.9,1.27291]
[1744390377002,0.00953652,1572.1,1572.0,1.27287]
[1744390377211,0.93666721,1572.1,1572.0,4.48067]
[1744390378403,0.93666721,1572.1,1572.0,1.27287]
[1744390378599,3.81326721,1572.1,1572.0,1.27287]
[1744390380008,5.08605721,1572.1,1572.0,1.27287]
[1744390380516,3.81326721,1572.1,1572.0,1.27287]
[1744390380710,5.08605721,1572.1,1572.0,1.27287]
[1744390380910,3.81326721,1572.1,1572.0,1.27287]
[1744390382215,5.08605721,1572.1,1572.0,1.27287]
[1744390382611,5.08605721,1572.1,1571.9,1.27289]
[1744390382612,1.27289,1572.0,1571.9,1.27289]
[1744390382917,1.27295,1571.9,1571.8,1.28252652]
[1744390383108,2.20008069,1571.9,1571.8,1.28252652]
[1744390383416,10.06188069,1571.9,1571.8,1.28256652]
[1744390383713,10.06188069,1571.9,1571.8,0.00953652]
[1744390384214,6.36574,1571.7,1571.3,1.27342]
[1744390384411,1.27346,1571.3,1571.1,1.27356]
[1744390384613,7.4547,1571.2,1571.1,1.26057039]
[1744390385621,0.00953652,1571.3,1571.2,1.27352]
[1744390385918,0.00953652,1571.3,1571.2,4.10692]
[1744390386614,0.00953652,1571.3,1571.2,8.91892]
[1744390386921,0.00953652,1571.3,1571.2,13.91892]
[1744390387219,0.00953652,1571.3,1571.2,13.73782]
[1744390390416,1.28297652,1571.3,1571.2,6.08552]
[1744390390619,4.05607652,1571.3,1571.2,6.08552]
[1744390390919,2.78263652,1571.3,1571.2,6.08552]
[1744390391120,0.00953652,1571.3,1571.2,8.92202]
[1744390391523,4.05607652,1571.3,1571.2,6.08552]
[1744390391721,2.78263652,1571.3,1571.2,4.11002]
[1744390392024,0.00953652,1571.3,1571.2,4.11002]
[1744390392225,0.00953652,1571.3,1571.2,8.77892]
[1744390392417,5.00953652,1571.3,1571.2,1.27352]
[1744390392721,0.00953652,1571.3,1571.2,1.27352]
[1744390393317,0.00953652,1571.3,1571.2,8.98352]
[1744390393628,6.52e-06,1571.3,1571.2,13.98352]
[1744390393927,6.52e-06,1571.3,1571.2,16.81192]
[1744390396118,6.52e-06,1571.3,1571.2,11.81192]
[1744390396322,5.00000652,1571.3,1571.1,1.27357]
[1744390396526,1.2736,1571.1,1571.0,1.28317652]
[1744390396832,1.2736,1571.1,1571.0,1.28320652]
[1744390397036,6.2736,1571.1,1571.0,1.28320652]
[1744390397219,6.4109,1571.1,1571.0,1.28320652]
[1744390397831,5.1373,1571.1,1571.0,1.28320652]
[1744390398327,2.3714,1571.2,1571.1,1.2736]
[1744390398527,5.97010652,1571.3,1571.2,1.27352]
[1744390399429,7.24354652,1571.3,1571.2,1.27352]
[1744390399830,5.97010652,1571.3,1571.2,1.27352]
[1744390400030,7.24354652,1571.3,1571.2,1.27352]
[1744390400232,1.27352,1571.2,1571.1,4.15144]
[1744390400431,3.92082,1571.2,1571.1,1.27354]
[1744390400730,2.6473,1571.2,1571.1,1.27354]
[1744390400933,3.92082,1571.2,1571.1,1.27354]
[1744390401127,1.2736,1571.1,1571.0,1.28315652]
[1744390401328,7.1351,1571.1,1571.0,1.28315652]
[1744390401829,2.2489,1571.1,1571.0,1.28315652]
[1744390402630,6.7303,1571.1,1571.0,0.00953652]
[1744390402831,2.2489,1571.1,1571.0,1.28321652]
[1744390403133,3.20780652,1571.3,1571.0,2.69383652]
[1744390403434,5.91680652,1571.3,1571.2,1.27352]
[1744390403826,7.19024652,1571.3,1571.2,1.27352]
[1744390404124,7.19024652,1571.3,1571.1,3.95787]
[1744390404321,2.709,1571.2,1571.1,3.95787]
[1744390405023,1.27351652,1571.3,1571.1,3.95789]
[1744390405223,3.98252,1571.2,1571.1,2.6843]
[1744390405428,3.98252,1571.2,1571.0,1.28315652]
[1744390405625,2.7399,1571.1,1571.0,1.28315652]
[1744390405829,1.27352,1571.2,1571.0,0.00953652]
[1744390406029,1.2736,1571.1,1571.0,1.28314652]
[1744390406434,1.2736,1571.1,1571.0,1.28321652]
[1744390406735,4.01348,1571.2,1571.0,1.28321652]
[1744390406936,2.7399,1571.2,1571.1,1.2736]
[1744390407231,1.27352,1571.2,1571.1,4.14446]
[1744390407627,4.01339652,1571.3,1571.2,1.27352]
[1744390407920,1.27352,1571.2,1571.1,4.14444]
[1744390408128,4.01342,1571.2,1571.1,4.14444]
[1744390408636,1.2736,1571.1,1571.0,1.28319652]
[1744390408831,6.52e-06,1571.3,1571.2,1.27352]
[1744390409036,6.52e-06,1571.3,1571.2,4.48132]
[1744390409238,6.52e-06,1571.3,1571.2,9.48132]
[1744390409431,6.52e-06,1571.3,1571.2,14.64422]
[1744390409633,9.90777891,1571.5,1571.4,1.27336]
[1744390409839,9.8947893,1571.5,1571.4,1.27336]
[1744390410238,9.8947893,1571.5,1571.4,3.53976]
[1744390410539,9.88525278,1571.5,1571.4,12.38436]
[1744390410739,9.88525278,1571.5,1571.4,11.74756]
[1744390410938,0.00953652,1571.6,1571.5,1.27328]
[1744390411143,0.00953652,1571.6,1571.5,8.93498]
[1744390411841,1.28272652,1571.6,1571.5,8.93498]
[1744390412136,1.28272652,1571.6,1571.5,2.8487]
[1744390412335,4.12732652,1571.6,1571.5,4.12198]
[1744390413240,4.12732652,1571.6,1571.5,2.8487]
[1744390413847,6.03717652,1571.6,1571.3,4.813]
[1744390414039,4.11796,1571.5,1571.4,1.27333]
[1744390414344,4.11788,1571.5,1571.4,1.27333]
[1744390414835,2.8446,1571.5,1571.4,1.27333]
[1744390415445,4.11788,1571.5,1571.4,1.27333]
[1744390415644,2.8446,1571.5,1571.4,1.27333]
[1744390417149,4.11788,1571.5,1571.4,1.27333]
[1744390418046,2.8446,1571.5,1571.4,1.27333]
[1744390418542,4.11788,1571.5,1571.3,2.6832]
[1744390418735,3.64166,1571.4,1571.3,1.27337]
[1744390418941,5.1592,1571.4,1571.3,1.26038039]
[1744390419143,6.43256,1571.4,1571.3,4.04968039]
[1744390419343,5.1592,1571.4,1571.3,4.04968039]
[1744390420449,6.43256,1571.4,1571.3,1.26038039]
[1744390420837,1.27352,1571.2,1571.1,1.27355]
[1744390421045,1.2736,1571.1,1571.0,0.00953652]
[1744390421244,1.27392,1570.7,1570.6,9.8565936]
[1744390421447,3.2078,1570.7,1570.6,9.8565936]
[1744390421750,2.7033,1570.8,1570.7,1.27392]
[1744390421944,3.97714,1570.8,1570.7,2.6523]
[1744390422146,2.7033,1570.8,1570.7,3.92622]
[1744390423645,3.98659652,1570.9,1570.8,1.27384]
[1744390423850,0.00953652,1570.9,1570.8,4.15384]
[1744390424448,4.12279652,1570.9,1570.8,4.15384]
[1744390424759,2.84903652,1570.9,1570.8,4.15384]
[1744390425143,4.12279652,1570.9,1570.8,4.15384]
[1744390425349,10.32994794,1570.9,1570.8,4.15384]
[1744390425550,7.49044794,1570.9,1570.8,6.57154]
[1744390426354,7.49044794,1570.9,1570.8,18.68004]
[1744390428860,0.00953652,1570.9,1570.8,18.68004]
[1744390429050,8.75433142,1571.4,1571.3,1.27344]
[1744390429248,7.48091142,1571.4,1571.3,4.48124]
[1744390429657,7.48091142,1571.4,1571.3,1.27344]
[1744390429955,7.48091142,1571.4,1571.3,3.76064]
[1744390430256,8.75427142,1571.4,1571.3,3.76064]
[1744390431347,1.27352,1571.3,1571.1,8.0378]
[1744390431659,8.75431142,1571.4,1571.3,1.27344]
[1744390431955,7.48091142,1571.4,1571.3,1.27344]
[1744390432956,7.48091142,1571.4,1571.2,2.4872]
[1744390432957,1.27344,1571.3,1571.2,2.4872]
[1744390433154,3.72444,1571.3,1571.2,3.76072]
[1744390433459,1.27363,1571.1,1571.0,1.27365]
[1744390433754,1.27368,1571.0,1570.9,6.10269]
[1744390434059,1.27368,1571.0,1570.9,3.91376]
[1744390434855,1.27368,1571.0,1570.9,2.64]
[1744390435054,1.27368,1571.0,1570.9,3.91376]
[1744390435257,1.27384,1570.8,1570.7,13.7704836]
[1744390435756,3.2078,1570.8,1570.7,9.8565936]
[1744390435953,17.4198,1570.8,1570.6,14.86751541]
[1744390436257,1.274,1570.6,1570.5,17.11650849]
[1744390436455,1.27425,1570.3,1570.2,9.87655224]
[1744390436656,6.10425,1570.3,1570.2,9.87655224]
[1744390436852,11.10425,1570.3,1570.2,9.87655224]
[1744390438062,11.10425,1570.3,1570.2,8.59971224]
[1744390438254,11.10425,1570.3,1570.2,7.07690224]
[1744390438655,11.10425,1570.3,1570.1,0.00953652]
[1744390438855,4.48213,1570.2,1570.1,0.00953652]
[1744390439158,4.48213,1570.2,1570.1,6.52e-06]
[1744390439359,13.60123,1570.2,1570.1,6.52e-06]
[1744390440462,1.27441,1570.1,1570.0,15.47086501]
[1744390440664,1.27449,1570.0,1569.9,24.63759319]
[1744390440857,9.31429,1570.0,1569.9,19.08560319]
[1744390441163,9.31429,1570.0,1569.0,1.2753]
[1744390441164,1.27506,1569.3,1569.0,1.2753]
[1744390441464,6.10699,1569.4,1569.2,2.4396]
[1744390441665,1.27499,1569.4,1569.3,6.3688]
[1744390441960,1.27498,1569.4,1569.3,6.3688]
[1744390442161,8.04933652,1569.5,1569.3,6.3688]
[1744390442355,8.04933652,1569.5,1569.4,2.455]
[1744390442666,9.32423652,1569.5,1569.4,8.8238]
[1744390445962,3.21733652,1569.5,1569.4,8.8238]
[1744390446158,3.21733652,1569.5,1569.4,10.09878]
[1744390446664,3.21733652,1569.5,1569.4,8.8238]
[1744390447166,4.49223652,1569.5,1569.4,8.8238]
[1744390448958,3.21733652,1569.5,1569.4,10.09878]
[1744390449269,4.49223652,1569.5,1569.4,8.8238]
[1744390449466,3.21733652,1569.5,1569.4,10.09878]
[1744390449673,0.00953652,1569.5,1569.4,10.09878]
[1744390450562,1.28443652,1569.5,1569.4,8.8238]
[1744390450762,0.00953652,1569.5,1569.4,10.09878]
[1744390451161,1.28443652,1569.5,1569.4,8.8238]
[1744390451667,0.00953652,1569.5,1569.4,10.09878]
[1744390452068,1.28443652,1569.5,1569.4,8.8238]
[1744390452371,1.28443652,1569.5,1569.4,10.09878]
[1744390452668,0.00953652,1569.5,1569.4,10.09878]
[1744390453277,1.28443652,1569.5,1569.4,8.8238]
[1744390453573,4.49223652,1569.5,1569.4,8.8238]
[1744390454270,1.28443652,1569.5,1569.4,8.8238]
[1744390454659,1.28443652,1569.5,1569.4,2.455]
[1744390454974,4.49223652,1569.5,1569.4,2.455]
[1744390456862,1.28443652,1569.5,1569.4,8.8238]
[1744390458067,0.00953652,1569.5,1569.4,10.09878]
[1744390458271,1.28443652,1569.5,1569.4,8.8238]
[1744390459459,1.28443652,1569.5,1569.4,2.455]
[1744390459665,4.49223652,1569.5,1569.4,2.455]
[1744390459865,4.49223652,1569.5,1569.4,8.8238]
[1744390461473,1.28443652,1569.5,1569.4,8.8238]
[1744390461873,1.28443652,1569.5,1569.4,10.09878]
[1744390462075,1.28443652,1569.5,1569.4,8.8238]
[1744390462663,0.00953652,1569.5,1569.4,10.09878]
[1744390462870,1.28443652,1569.5,1569.4,10.09878]
[1744390463072,1.28443652,1569.5,1569.4,8.8238]
[1744390466270,4.49223652,1569.5,1569.4,8.8238]
[1744390468080,0.00953652,1569.5,1569.4,8.8238]
[1744390468274,3.21733652,1569.5,1569.4,8.8238]
[1744390468481,0.00953652,1569.5,1569.4,8.8238]
[1744390468885,0.00953652,1569.5,1569.4,10.09878]
[1744390469376,1.28443652,1569.5,1569.4,8.8238]
[1744390469874,1.28443652,1569.5,1569.4,10.09878]
[1744390470070,0.00953652,1569.5,1569.4,15.09878]
[1744390470269,0.00953652,1569.5,1569.4,10.09878]
[1744390471484,1.2747,1569.8,1569.6,1.27475]
[1744390471673,1.27474,1569.7,1569.6,1.27475]
[1744390471981,1.27482,1569.6,1569.5,2.1586]
[1744390472173,1.27482,1569.6,1569.5,8.5274]
[1744390473776,1.27482,1569.6,1569.5,6.3688]
[1744390473981,1.27506,1569.3,1569.2,3.45072]
[1744390474180,1.27506,1569.4,1569.3,7.64386]
[1744390474768,1.27506,1569.4,1569.3,9.80466]
[1744390474969,1.27506,1569.4,1569.3,6.3688]
[1744390475786,3.18746,1569.4,1569.0,0.00635772]
[1744390476085,1.27522,1569.1,1569.0,0.00635772]
[1744390476275,1.27519,1569.2,1569.1,6.3688]
[1744390477184,1.27509,1569.3,1569.1,7.64396]
[1744390477382,1.27509,1569.3,1569.2,8.5296]
[1744390481684,2.55309,1569.3,1569.2,6.3688]
[1744390482284,1.27509,1569.3,1569.2,6.3688]
[1744390483178,12.15868342,1569.3,1569.2,6.3688]
[1744390485679,13.43638342,1569.3,1569.2,6.3688]
[1744390486191,12.15868342,1569.3,1569.2,6.3688]
[1744390486384,10.88359342,1569.3,1569.2,9.78214]
[1744390486578,12.00809142,1569.3,1569.2,12.19044]
[1744390486782,13.28315142,1569.3,1569.2,12.19044]
[1744390487593,13.28315142,1569.3,1569.2,10.9153]
[1744390490986,25.80703546,1569.3,1569.2,10.9153]
[1744390492484,25.80703546,1569.3,1569.2,8.7771]
[1744390494392,25.80703546,1569.3,1569.2,11.9849]
[1744390494697,12.36725652,1569.7,1569.6,1.27482]
[1744390494698,0.00953652,1569.7,1569.6,1.27482]
[1744390495294,1.28427652,1569.7,1569.6,1.27482]
[1744390495894,0.00953652,1569.7,1569.6,1.27482]
[1744390496195,1.28427652,1569.7,1569.6,1.27482]
[1744390497390,0.00953652,1569.7,1569.6,1.27482]
[1744390497698,0.00953652,1569.7,1569.6,9.48262]
[1744390498399,0.00953652,1569.7,1569.6,12.01212]
[1744390499397,0.00953652,1569.7,1569.6,7.01212]
[1744390499599,0.00953652,1569.7,1569.6,3.80432]
[1744390499993,0.00953652,1569.7,1569.6,12.01212]
[1744390500389,16.29019978,1570.2,1570.1,1.27441]
[1744390500796,15.01586978,1570.2,1570.1,1.27441]
[1744390500995,16.29019978,1570.2,1570.1,42.07441]
[1744390501301,16.29019978,1570.2,1570.1,44.64661]
[1744390501595,19.49799978,1570.2,1570.1,43.3722]
[1744390501798,19.49799978,1570.2,1570.0,2.30193652]
[1744390501799,1.27441,1570.1,1570.0,0.00953652]
[1744390502005,3.78251,1570.1,1570.0,0.00953652]
[1744390502404,8.78251,1570.1,1570.0,0.00953652]
[1744390502603,15.74881,1570.1,1570.0,0.00953652]
[1744390503295,10.74881,1570.1,1570.0,0.00953652]
[1744390503697,15.74881,1570.1,1570.0,0.00953652]
[1744390504298,10.74881,1570.1,1570.0,0.00953652]
[1744390504501,9.4744,1570.1,1570.0,1.28402652]
[1744390504702,10.74881,1570.1,1570.0,0.00953652]
[1744390504903,9.4744,1570.1,1570.0,1.28402652]
[1744390505802,8.60051,1570.1,1570.0,1.28402652]
[1744390506104,8.60051,1570.1,1570.0,0.00953652]
[1744390506995,3.78251,1570.1,1570.0,0.00953652]
[1744390507607,2.5081,1570.1,1570.0,1.28402652]
[1744390507810,3.78251,1570.1,1570.0,0.00953652]
[1744390508105,3.78251,1570.1,1570.0,1.28402652]
[1744390508300,3.78251,1570.1,1570.0,0.00953652]
[1744390508498,8.78251,1570.1,1570.0,0.00953652]
[1744390509004,1.27473,1569.8,1569.6,1.27475]
[1744390509305,3.52064,1569.7,1569.5,5.7496]
[1744390509502,4.7015,1569.7,1569.6,1.27482]
[1744390509702,2.2459,1569.7,1569.6,3.81662]
[1744390510007,3.2078,1569.9,1569.8,1.27465]
[1744390510900,7.0639,1570.1,1569.9,1.27457]
[1744390511096,2.2459,1570.1,1570.0,3.81629]
[1744390511400,1.27433,1570.2,1570.1,1.27433]
[1744390511595,1.27433,1570.2,1570.1,4.6883]
[1744390511797,1.27433,1570.2,1570.1,2.5418]
[1744390512007,1.27454,1570.0,1569.9,3.74644]
[1744390512207,1.27454,1570.0,1569.9,2.4719]
[1744390512801,3.40624,1570.0,1569.9,2.4719]
[1744390514200,8.52574,1570.0,1569.7,3.57077]
[1744390514403,1.27474,1569.7,1569.6,2.1139]
[1744390514607,1.27474,1569.7,1569.6,4.5858]
[1744390515207,1.27482,1569.6,1569.5,0.00953652]
[1744390515511,3.18725,1569.5,1569.1,3.38911]
[1744390515703,1.27514,1569.2,1569.1,2.1139]
[1744390516006,1.27514,1569.2,1569.1,2.481]
[1744390516504,2.52533652,1569.3,1569.0,0.00635772]
[1744390516707,2.1606,1569.2,1569.0,2.48735772]
[1744390516902,3.79102,1569.1,1569.0,2.48735772]
[1744390517904,3.79102,1569.1,1569.0,0.00635772]
[1744390518102,6.06012,1569.1,1569.0,0.00635772]
[1744390518301,1.27547,1568.8,1568.7,14.84510175]
[1744390518911,6.05357,1568.8,1568.7,14.84510175]
[1744390521915,4.7781,1568.8,1568.7,14.84510175]
[1744390522106,3.49197,1568.8,1568.7,17.41000175]
[1744390522311,14.57479775,1568.8,1568.7,2.5649]
[1744390523018,8.43832775,1568.8,1568.7,3.84045]
[1744390523212,8.43832775,1568.8,1568.7,8.84045]
[1744390523710,8.43832775,1568.8,1568.7,3.84045]
[1744390523916,8.43832775,1568.8,1568.7,8.84045]
[1744390524114,8.43832775,1568.8,1568.7,12.04825]
[1744390524818,8.43832775,1568.8,1568.7,7.04825]
[1744390525220,8.43832775,1568.8,1568.7,12.04825]
[1744390525822,6.25515618,1569.0,1568.9,1.27539]
[1744390526025,4.97983618,1569.0,1568.9,1.27539]
[1744390526222,4.97983618,1569.0,1568.8,4.215]
[1744390526522,4.97983618,1569.0,1568.9,3.75529]
[1744390526723,6.25513618,1569.0,1568.9,2.4799]
[1744390526920,6.25513618,1569.0,1568.9,44.55529]
[1744390527119,6.25513618,1569.0,1568.9,47.76309]
[1744390527424,4.97983618,1569.0,1568.9,57.58009]
[1744390527814,4.97983618,1569.0,1568.9,52.76309]
[1744390528124,6.25513618,1569.0,1568.9,43.2799]
[1744390528317,4.97983618,1569.0,1568.9,43.2799]
[1744390528516,4.97983618,1569.0,1568.9,49.55529]
[1744390528924,7.48215824,1569.1,1569.0,1.2753]
[1744390529117,0.00953652,1569.3,1569.2,1.27514]
[1744390529317,0.00953652,1569.3,1569.2,9.48294]
[1744390529516,4.98767662,1569.3,1569.2,50.28294]
[1744390529728,12.46712844,1569.6,1569.5,1.2749]
[1744390530024,12.46712844,1569.6,1569.5,9.3007]
[1744390530225,12.46712844,1569.6,1569.5,6.0929]
[1744390530626,12.46712844,1569.6,1569.5,1.2749]
[1744390531125,12.46712844,1569.6,1569.5,4.4827]
[1744390531622,12.46712844,1569.6,1569.5,4.99038427]
[1744390531827,12.46712844,1569.6,1569.5,9.4827]
[1744390532133,10.88958844,1569.6,1569.5,9.4827]
[1744390532321,8.11516844,1569.6,1569.5,9.4827]
[1744390532521,6.47174844,1569.6,1569.5,9.4827]
[1744390532729,5.01843844,1569.6,1569.5,11.8751]
[1744390533226,1.60503844,1569.6,1569.5,11.8751]
[1744390533430,4.96e-06,1569.7,1569.6,1.27482]
[1744390533630,4.96e-06,1569.7,1569.6,6.09182]
[1744390533933,6.49902,1570.3,1570.2,1.27433]
[1744390534230,5.22475,1570.3,1570.2,1.27433]
[1744390534434,2.58665,1570.3,1570.2,6.09033]
[1744390534632,2.58665,1570.3,1570.2,15.76053]
[1744390535129,0.37732,1570.3,1570.2,56.56053]
[1744390535429,6.34583315,1570.4,1570.3,1.91185]
[1744390535726,4.88039315,1570.4,1570.3,6.63645]
[1744390536534,4.88039315,1570.4,1570.3,44.22865]
[1744390537041,6.15456315,1570.4,1570.3,40.8]
[1744390537324,1.27433,1570.2,1570.1,4.82553652]
[1744390537529,1.27433,1570.2,1570.1,1.28394652]
[1744390537726,1.27431,1570.3,1570.1,1.28394652]
[1744390537929,3.69223,1570.2,1570.1,40.80953652]
[1744390538127,8.03563,1570.2,1570.1,0.00953652]
[1744390538323,13.03563,1570.2,1570.1,0.00953652]
[1744390541428,10.93873,1570.2,1570.1,0.00953652]
[1744390541626,2.4179,1570.2,1570.1,0.00953652]
[1744390541830,3.69223,1570.2,1570.1,0.00953652]
[1744390542226,2.4179,1570.2,1570.1,1.28394652]
[1744390542835,3.69223,1570.2,1570.1,0.00953652]
[1744390543030,11.90003,1570.2,1570.1,0.00953652]
[1744390543529,16.71503,1570.2,1570.1,0.00953652]
[1744390544928,1.27475,1569.7,1569.6,1.27481]
[1744390545131,3.18609,1570.1,1569.7,1.27474]
[1744390545132,1.2747,1569.8,1569.7,1.27474]
[1744390545436,1.27474,1569.7,1569.6,44.6633]
[1744390545637,3.67234,1569.7,1569.6,44.6633]
[1744390546135,2.3976,1569.7,1569.6,43.3885]